fUST/lending_fUST_20240801
["ID","MTS","AMOUNT","RATE_DAILY","PERIOD"]
[333793256,1722509460266,-660.41,0.0001452,2]
[333793257,1722509460275,-968.53,0.0001452,2]
[333793258,1722509460284,-1179.83,0.0001452,2]
[333793259,1722509460294,-593.76,0.0001452,2]
[333793260,1722509460304,-2915.1,0.0001452,2]
[333793261,1722509460314,-1283.54,0.0001452,2]
[333793262,1722509460323,-153.0,0.0001463,2]
[333793263,1722509460332,-153.0,0.0001463,2]
[333793264,1722509460342,-153.0,0.0001463,2]
[333793265,1722509460351,-153.0,0.0001463,2]
[333793266,1722509460361,-153.0,0.0001463,2]
[333793267,1722509460371,-153.0,0.0001463,2]
[333793268,1722509460380,-153.0,0.0001463,2]
[333793269,1722509460390,-155.0,0.0001468,2]
[333793270,1722509460400,-1806.76676384,0.00014689,2]
[333793271,1722509460409,-261.15018643,0.0001469,2]
[333793272,1722509460419,-473.887496,0.0001469,2]
[333793273,1722509460429,-485.19899333,0.0001469,2]
[333793274,1722509460439,-527.09552675,0.0001469,2]
[333793275,1722509460448,-816.07415827,0.0001469,2]
[333793276,1722509460458,-194.52699436,0.0001469,2]
[333793277,1722509460468,-30000.0,0.0001469,2]
[333793278,1722509460478,-470.381176,0.00014699,2]
[333793279,1722509460487,-548.654034,0.00014699,2]
[333793280,1722509460496,-191.610186,0.00014699,2]
[333793281,1722509460506,-274.901945,0.00014699,2]
[333793282,1722509460515,-483.224105,0.00014699,2]
[333793283,1722509460525,-476.446135,0.00014699,2]
[333793284,1722509460534,-600.0,0.00014728,2]
[333793285,1722509460543,-500.0,0.00014794,2]
[333793286,1722509460553,-500.0,0.00014794,2]
[333793287,1722509460562,-548.39,0.00014794,2]
[333793288,1722509460572,-500.0,0.00014794,2]
[333793289,1722509460581,-500.0,0.00014794,2]
[333793290,1722509460591,-810.04,0.00014794,2]
[333793291,1722509460601,-1152.23,0.00014794,2]
[333793292,1722509460610,-500.0,0.00014794,2]
[333793293,1722509460620,-680.7,0.00014794,2]
[333793294,1722509460629,-500.0,0.00014794,2]
[333793295,1722509460639,-500.0,0.00014794,2]
[333793296,1722509460649,-546.89,0.00014794,2]
[333793297,1722509460658,-575.56,0.00014794,2]
[333793298,1722509460671,-778.25,0.00014794,2]
[333793299,1722509460680,-500.0,0.00014794,2]
[333793300,1722509460689,-500.0,0.00014794,2]
[333793301,1722509460699,-507.97,0.00014794,2]
[333793302,1722509460710,-500.0,0.00014794,2]
[333793303,1722509460720,-879.95,0.00014794,2]
[333793304,1722509460730,-500.0,0.00014794,2]
[333793305,1722509460741,-568.51,0.00014794,2]
[333793306,1722509460750,-500.0,0.00014794,2]
[333793307,1722509460760,-677.68,0.00014794,2]
[333793308,1722509460769,-1164.74,0.00014794,2]
[333793309,1722509460779,-500.0,0.00014794,2]
[333793310,1722509460789,-500.0,0.00014794,2]
[333793311,1722509460801,-500.0,0.00014794,2]
[333793312,1722509460812,-1196.83,0.00014794,2]
[333793313,1722509460821,-500.0,0.00014794,2]
[333793314,1722509460831,-629.22,0.00014794,2]
[333793315,1722509460842,-500.0,0.00014794,2]
[333793316,1722509460851,-500.0,0.00014794,2]
[333793317,1722509460928,-2302.45,0.00014794,2]
[333793318,1722509460938,-2595.33,0.00014794,2]
[333793319,1722509460948,-3710.46,0.00014794,2]
[333793320,1722509460960,-500.0,0.00014794,2]
[333793321,1722509460970,-1284.6,0.00014794,2]
[333793322,1722509460980,-500.0,0.00014794,2]
[333793323,1722509460989,-801.29,0.00014794,2]
[333793324,1722509460999,-841.49,0.00014794,2]
[333793325,1722509461009,-500.0,0.00014794,2]
[333793326,1722509461019,-4708.83,0.00014794,2]
[333793327,1722509461029,-641.89,0.00014794,2]
[333793328,1722509461039,-5355.0,0.00014794,2]
[333793329,1722509461048,-500.0,0.00014794,2]
[333793330,1722509461058,-500.0,0.00014794,2]
[333793331,1722509461067,-1045.32,0.00014794,2]
[333793332,1722509461077,-611.51,0.00014794,2]
[333793333,1722509461091,-562.28,0.00014794,2]
[333793334,1722509461102,-500.0,0.00014794,2]
[333793335,1722509461112,-771.47,0.00014794,2]
[333793336,1722509461122,-659.08,0.00014794,2]
[333793337,1722509461133,-500.0,0.00014794,2]
[333793338,1722509461143,-1666.96,0.00014794,2]
[333793339,1722509461153,-500.0,0.00014794,2]
[333793340,1722509461163,-910.42,0.00014794,2]
[333793341,1722509461174,-500.0,0.00014794,2]
[333793342,1722509461185,-1307.83,0.00014794,2]
[333793343,1722509461195,-619.42,0.00014794,2]
[333793344,1722509461205,-314.11230416,0.00014794,2]
[333793345,1722509461216,-1698.68,0.00014794,2]
[333793346,1722509461228,-500.0,0.00014794,2]
[333793347,1722509461237,-4402.92,0.00014794,2]
[333793348,1722509461247,-807.85,0.00014794,2]
[333793349,1722509461256,-1444.65,0.00014794,2]
[333793350,1722509461267,-1174.82,0.00014794,2]
[333793351,1722509461277,-500.0,0.00014794,2]
[333793352,1722509461287,-595.56,0.00014794,2]
[333793353,1722509461296,-500.0,0.00014794,2]
[333793354,1722509461306,-500.0,0.00014794,2]
[333793355,1722509461315,-503.40408378,0.00014794,2]
[333793356,1722509461325,-3119.17,0.00014794,2]
[333793357,1722509461334,-500.0,0.00014794,2]
[333793358,1722509461344,-500.0,0.00014794,2]
[333793359,1722509461354,-902.84,0.00014794,2]
[333793360,1722509461364,-500.0,0.00014794,2]
[333793361,1722509461374,-1700.91,0.00014794,2]
[333793362,1722509461384,-739.48,0.00014794,2]
[333793363,1722509461394,-630.21,0.00014794,2]
[333793364,1722509461403,-853.47,0.00014794,2]
[333793365,1722509461413,-1049.01,0.00014794,2]
[333793366,1722509461425,-500.0,0.00014794,2]
[333793367,1722509461434,-500.0,0.00014794,2]
[333793368,1722509461445,-607.77,0.00014794,2]
[333793369,1722509461454,-500.0,0.00014794,2]
[333793370,1722509461464,-500.0,0.00014794,2]
[333793371,1722509461474,-835.98,0.00014794,2]
[333793372,1722509461484,-806.84,0.00014794,2]
[333793373,1722509461494,-532.25,0.00014794,2]
[333793374,1722509461504,-576.71,0.00014794,2]
[333793375,1722509461514,-660.41,0.00014794,2]
[333793376,1722509461523,-968.53,0.00014794,2]
[333793377,1722509461534,-1179.83,0.00014794,2]
[333793378,1722509461544,-593.76,0.00014794,2]
[333793379,1722509461554,-1283.54,0.00014794,2]
[333793380,1722509461563,-2915.1,0.00014794,2]
[333793381,1722509461573,-470.381176,0.00014878,2]
[333793382,1722509461583,-548.654034,0.00014878,2]
[333793383,1722509461592,-191.610186,0.00014878,2]
[333793384,1722509461602,-274.901945,0.00014878,2]
[333793385,1722509461611,-483.224105,0.00014878,2]
[333793386,1722509461621,-476.446135,0.00014878,2]
[333793387,1722509461630,-600.0,0.00014882,2]
[333793388,1722509461640,-420.0,0.00014934,2]
[333793389,1722509461650,-2847.40036017,0.00015,2]
[333793390,1722509461660,-675.06114033,0.00015,2]
[333793391,1722509525407,540.53450372,9.999e-05,2]
[333793396,1722510101957,5080.0,0.00027,120]
[333793468,1722510632002,-163.787465,0.00012305,2]
[333793469,1722510632011,-161.279717,0.00012349,2]
[333793470,1722510632021,-161.279717,0.00012564,2]
[333793471,1722510632030,-163.787465,0.00012724,2]
[333793472,1722510632039,-161.279717,0.00012778,2]
[333793473,1722510632049,-195.4389221,0.00012886,2]
[333793474,1722510632058,-175.668339,0.00012986,2]
[333793475,1722510632068,-161.279717,0.00012993,2]
[333793476,1722510632079,-163.787465,0.00013143,2]
[333793477,1722510632088,-83.08291923,0.00013563,2]
[333793570,1722510638154,-80.70454577,0.00013563,2]
[333793572,1722510638164,-300.0,0.00013597,2]
[333793575,1722510638174,-1192.53675423,0.00013598,2]
[333793578,1722510638187,-333.24854679,0.00013598,2]
[333793631,1722510640169,-223.64557934,0.00013598,2]
[333793634,1722510640181,-5410.29918452,0.00013598,2]
[333793635,1722510640193,-1996.24,0.00013697,2]
[333793636,1722510640205,-1996.24,0.00013697,2]
[333793638,1722510640219,-501.67545078,0.00013698,2]
[333793640,1722510640231,-510.10209136,0.00013698,2]
[333793643,1722510640241,-508.77665428,0.00013698,2]
[333793645,1722510640251,-500.0,0.00013698,2]
[333793647,1722510640265,-500.0,0.00013698,2]
[333793649,1722510640276,-500.0,0.00013698,2]
[333793651,1722510640287,-500.0,0.00013698,2]
[333793653,1722510640299,-505.87838137,0.00013698,2]
[333793655,1722510640312,-513.42,0.00013698,2]
[333793657,1722510640323,-641.28,0.00013698,2]
[333793659,1722510640336,-500.0,0.00013698,2]
[333793661,1722510640347,-500.0,0.00013698,2]
[333793663,1722510640360,-500.0,0.00013698,2]
[333793665,1722510640372,-500.0,0.00013698,2]
[333793667,1722510640384,-500.0,0.00013698,2]
[333793669,1722510640397,-500.0,0.00013698,2]
[333793671,1722510640409,-500.0,0.00013698,2]
[333793673,1722510640419,-500.0,0.00013698,2]
[333793675,1722510640429,-500.0,0.00013698,2]
[333793676,1722510640439,-696.63,0.00013698,2]
[333793677,1722510640451,-500.0,0.00013698,2]
[333793678,1722510640462,-500.0,0.00013698,2]
[333793679,1722510640474,-500.0,0.00013698,2]
[333793680,1722510640487,-500.0,0.00013698,2]
[333793681,1722510640499,-536.49,0.00013698,2]
[333793682,1722510640509,-922.09,0.00013698,2]
[333793683,1722510640519,-500.0,0.00013698,2]
[333793684,1722510640532,-500.0,0.00013698,2]
[333793685,1722510640543,-500.0,0.00013698,2]
[333793686,1722510640554,-500.0,0.00013698,2]
[333793687,1722510640566,-947.49,0.00013698,2]
[333793688,1722510640576,-500.0,0.00013698,2]
[333793689,1722510640587,-500.0,0.00013698,2]
[333793690,1722510640597,-500.0,0.00013698,2]
[333793691,1722510640608,-500.0,0.00013698,2]
[333793692,1722510640619,-500.0,0.00013698,2]
[333793693,1722510640630,-505.72277134,0.00013698,2]
[333793694,1722510640641,-2307.79,0.00013698,2]
[333793695,1722510640652,-508.16,0.00013698,2]
[333793696,1722510640662,-301.13484717,0.00013698,2]
[333793697,1722510640672,-500.0,0.00013698,2]
[333793698,1722510640683,-2054.63,0.00013698,2]
[333793699,1722510640694,-500.0,0.00013698,2]
[333793700,1722510640705,-2937.45,0.00013698,2]
[333793701,1722510640715,-500.0,0.00013698,2]
[333793702,1722510640726,-1319.68,0.00013698,2]
[333793703,1722510640736,-634.35,0.00013698,2]
[333793704,1722510640747,-500.0,0.00013698,2]
[333793705,1722510640761,-1016.98,0.00013698,2]
[333793706,1722510640771,-4239.37,0.00013698,2]
[333793707,1722510640782,-666.18,0.00013698,2]
[333793708,1722510640792,-3727.82,0.00013698,2]
[333793709,1722510640804,-500.0,0.00013698,2]
[333793710,1722510640816,-508.33633488,0.00013698,2]
[333793711,1722510640826,-500.0,0.00013698,2]
[333793712,1722510640838,-827.55,0.00013698,2]
[333793713,1722510640849,-639.54,0.00013698,2]
[333793714,1722510640863,-500.0,0.00013698,2]
[333793715,1722510640874,-500.0,0.00013698,2]
[333793716,1722510640885,-500.0,0.00013698,2]
[333793717,1722510640896,-521.77,0.00013698,2]
[333793718,1722510640907,-500.0,0.00013698,2]
[333793719,1722510640918,-500.0,0.00013698,2]
[333793720,1722510640928,-720.75,0.00013698,2]
[333793721,1722510640940,-1035.37,0.00013698,2]
[333793722,1722510640951,-500.0,0.00013698,2]
[333793723,1722510640963,-500.0,0.00013698,2]
[333793724,1722510640975,-1344.79,0.00013698,2]
[333793725,1722510640986,-649.55,0.00013698,2]
[333793726,1722510640996,-3485.65,0.00013698,2]
[333793727,1722510641007,-930.07,0.00013698,2]
[333793728,1722510641018,-500.0,0.00013698,2]
[333793729,1722510641030,-500.0,0.00013698,2]
[333793730,1722510641040,-1143.69,0.00013698,2]
[333793731,1722510641051,-500.0,0.00013698,2]
[333793732,1722510641063,-500.0,0.00013698,2]
[333793733,1722510641074,-500.0,0.00013698,2]
[333793734,1722510641087,-500.0,0.00013698,2]
[333793735,1722510641098,-2469.35,0.00013698,2]
[333793736,1722510641109,-830.46,0.00013698,2]
[333793737,1722510641119,-1346.55,0.00013698,2]
[333793738,1722510641130,-714.75,0.00013698,2]
[333793739,1722510641143,-585.42,0.00013698,2]
[333793740,1722510641154,-500.0,0.00013698,2]
[333793741,1722510641165,-500.0,0.00013698,2]
[333793742,1722510641176,-500.0,0.00013698,2]
[333793743,1722510641187,-675.66,0.00013698,2]
[333793744,1722510641198,-500.0,0.00013698,2]
[333793745,1722510641210,-500.0,0.00013698,2]
[333793746,1722510641220,-500.0,0.00013698,2]
[333793747,1722510641232,-500.0,0.00013698,2]
[333793748,1722510641381,-500.0,0.00013698,2]
[333793749,1722510641390,-661.81,0.00013698,2]
[333793750,1722510641400,-912.18,0.00013698,2]
[333793751,1722510641410,-201.34881186,0.00013698,2]
[333793752,1722510641423,-321.48118814,0.00013698,2]
[333793753,1722510641432,-934.03,0.00013698,2]
[333793754,1722510641441,-638.75,0.00013698,2]
[333793755,1722510641451,-804.47,0.00013698,2]
[333793756,1722510641460,-500.0,0.00013698,2]
[333793757,1722510641469,-766.75,0.00013698,2]
[333793758,1722510641479,-500.0,0.00013698,2]
[333793759,1722510641488,-1822.77,0.00013698,2]
[333793760,1722510641497,-3973.16057256,0.00013735,2]
[333793761,1722510641509,-329.7518327,0.00013735,2]
[333793793,1722510642996,-538.88,0.00013698,2]
[333793795,1722510643006,-1107.38677922,0.00013735,2]
[333793796,1722510643016,-46410.7029371,0.00013862,2]
[333793797,1722510643027,-5410.29918448,0.00013872,2]
[333793798,1722510643036,-1996.24,0.00013961,2]
[333793799,1722510643046,-350.0,0.00013961,2]
[333793800,1722510643056,-541.90222171,0.00013961,2]
[333793801,1722510643066,-46410.7029371,0.00013962,2]
[333793802,1722510643076,-1996.24,0.00013971,2]
[333793803,1722510643086,-1996.24,0.00013971,2]
[333793804,1722510643097,-500.0,0.00013972,2]
[333793805,1722510643106,-500.0,0.00013972,2]
[333793806,1722510643116,-500.0,0.00013972,2]
[333793807,1722510643126,-500.0,0.00013972,2]
[333793808,1722510643136,-513.42,0.00013972,2]
[333793809,1722510643145,-500.0,0.00013972,2]
[333793810,1722510643155,-500.0,0.00013972,2]
[333793811,1722510643165,-500.0,0.00013972,2]
[333793812,1722510643176,-500.0,0.00013972,2]
[333793813,1722510643186,-500.0,0.00013972,2]
[333793814,1722510643195,-500.0,0.00013972,2]
[333793815,1722510643206,-500.0,0.00013972,2]
[333793816,1722510643215,-500.0,0.00013972,2]
[333793817,1722510643224,-500.0,0.00013972,2]
[333793818,1722510643234,-696.63,0.00013972,2]
[333793819,1722510643243,-500.0,0.00013972,2]
[333793820,1722510643253,-500.0,0.00013972,2]
[333793821,1722510643267,-500.0,0.00013972,2]
[333793822,1722510643277,-500.0,0.00013972,2]
[333793823,1722510643287,-536.49,0.00013972,2]
[333793824,1722510643296,-922.09,0.00013972,2]
[333793825,1722510643306,-500.0,0.00013972,2]
[333793826,1722510643315,-500.0,0.00013972,2]
[333793827,1722510643325,-500.0,0.00013972,2]
[333793828,1722510643337,-500.0,0.00013972,2]
[333793829,1722510643347,-947.49,0.00013972,2]
[333793830,1722510643357,-500.0,0.00013972,2]
[333793831,1722510643366,-500.0,0.00013972,2]
[333793832,1722510643376,-500.0,0.00013972,2]
[333793833,1722510643385,-500.0,0.00013972,2]
[333793834,1722510643395,-500.0,0.00013972,2]
[333793835,1722510643404,-508.16,0.00013972,2]
[333793836,1722510643413,-500.0,0.00013972,2]
[333793837,1722510643423,-2054.63,0.00013972,2]
[333793838,1722510643443,-500.0,0.00013972,2]
[333793839,1722510643454,-2937.45,0.00013972,2]
[333793840,1722510643464,-500.0,0.00013972,2]
[333793841,1722510643474,-1319.68,0.00013972,2]
[333793842,1722510643484,-634.35,0.00013972,2]
[333793843,1722510643494,-500.0,0.00013972,2]
[333793844,1722510643504,-1016.98,0.00013972,2]
[333793845,1722510643514,-4239.37,0.00013972,2]
[333793846,1722510643524,-666.18,0.00013972,2]
[333793847,1722510643535,-3727.82,0.00013972,2]
[333793848,1722510643544,-500.0,0.00013972,2]
[333793849,1722510643554,-500.0,0.00013972,2]
[333793850,1722510643564,-827.55,0.00013972,2]
[333793851,1722510643574,-639.54,0.00013972,2]
[333793852,1722510643585,-500.0,0.00013972,2]
[333793853,1722510643595,-500.0,0.00013972,2]
[333793854,1722510643606,-500.0,0.00013972,2]
[333793855,1722510643616,-521.77,0.00013972,2]
[333793856,1722510643627,-500.0,0.00013972,2]
[333793857,1722510643638,-500.0,0.00013972,2]
[333793858,1722510643648,-720.75,0.00013972,2]
[333793859,1722510643658,-1035.37,0.00013972,2]
[333793860,1722510643667,-500.0,0.00013972,2]
[333793861,1722510643678,-500.0,0.00013972,2]
[333793862,1722510643687,-1344.79,0.00013972,2]
[333793863,1722510643697,-649.55,0.00013972,2]
[333793864,1722510643707,-930.07,0.00013972,2]
[333793865,1722510643717,-3485.65,0.00013972,2]
[333793866,1722510643727,-474.96651649,0.00013972,2]
[333793867,1722510643737,-500.0,0.00013972,2]
[333793868,1722510643746,-1143.69,0.00013972,2]
[333793869,1722510643757,-500.0,0.00013972,2]
[333793870,1722510643767,-500.0,0.00013972,2]
[333793871,1722510643777,-392.69827234,0.00013972,2]
[333793872,1722510643786,-500.0,0.00013972,2]
[333793873,1722510643796,-2469.35,0.00013972,2]
[333793874,1722510643807,-830.46,0.00013972,2]
[333793875,1722510643817,-1346.55,0.00013972,2]
[333793876,1722510643827,-714.75,0.00013972,2]
[333793877,1722510643839,-585.42,0.00013972,2]
[333793878,1722510643848,-500.0,0.00013972,2]
[333793879,1722510643858,-500.0,0.00013972,2]
[333793880,1722510643868,-500.0,0.00013972,2]
[333793881,1722510643878,-675.66,0.00013972,2]
[333793882,1722510643888,-402.31522869,0.00013972,2]
[333793883,1722510643898,-500.0,0.00013972,2]
[333793884,1722510643908,-500.0,0.00013972,2]
[333793885,1722510643917,-500.0,0.00013972,2]
[333793886,1722510643927,-500.0,0.00013972,2]
[333793887,1722510643937,-661.81,0.00013972,2]
[333793888,1722510643946,-912.18,0.00013972,2]
[333793889,1722510643956,-522.83,0.00013972,2]
[333793890,1722510643966,-934.03,0.00013972,2]
[333793891,1722510643976,-638.75,0.00013972,2]
[333793892,1722510643986,-804.47,0.00013972,2]
[333793893,1722510643996,-500.0,0.00013972,2]
[333793894,1722510644006,-766.75,0.00013972,2]
[333793895,1722510644015,-500.0,0.00013972,2]
[333793896,1722510644025,-1822.77,0.00013972,2]
[333793897,1722510644035,-538.88,0.00013972,2]
[333793898,1722510644044,-163.787465,0.00013982,2]
[333793899,1722510644054,-506.0,0.00013998,2]
[333793900,1722510644064,-1410.0,0.00013998,2]
[333793901,1722510644074,-19643.90770319,0.00013999,2]
[333793902,1722510644238,-764.76670726,0.00013999,2]
[333793940,1722510646278,-500.0,0.00013698,2]
[333793941,1722510646287,-500.0,0.00013972,2]
[333793942,1722510646297,-1806.93112494,0.00013999,2]
[333793943,1722510646310,-1380.6493552,0.00013999,2]
[333793944,1722510646322,-3509.545865,0.00013999,2]
[333793968,1722511048738,1441.81,0.00027,120]
[333793972,1722511767150,-872.80686763,0.00011199,2]
[333794074,1722511838261,-4253.62372776,0.00011199,2]
[333794076,1722511838272,-3039.77437972,0.00011199,2]
[333794078,1722511838282,-166.666666,0.00011955,2]
[333794080,1722511838292,-459.55767833,0.00012119,2]
[333794082,1722511838302,-157.937296,0.00012986,2]
[333794084,1722511838312,-157.937296,0.00012986,2]
[333794086,1722511838322,-300.0,0.00012999,2]
[333794088,1722511838332,-1000.0,0.00013,13]
[333794091,1722511838342,-13023.48976536,0.00013,2]
[333794192,1722511840179,-1989.48000978,0.00013,2]
[333794193,1722511840190,-2819.80763802,0.00013505,2]
[333794194,1722511840202,-1694.98,0.00013505,2]
[333794219,1722511843089,-4523.103804,0.00013505,2]
[333794220,1722511843100,-166.666666,0.00013585,2]
[333794221,1722511843109,-1831.66314459,0.00013586,2]
[333794222,1722511843118,-2164.1196738,0.00013588,2]
[333794223,1722511843128,-2164.11967379,0.00013663,2]
[333794224,1722511843138,-54554.18643457,0.00013686,2]
[333794251,1722511846577,-1523.52312566,0.00013686,2]
[333794302,1722512522234,354.7,0.00027,120]
[333794306,1722512688688,1322.0,0.00027,120]
[333794308,1722512788279,1449.0,0.00025,60]
[333794517,1722513040293,-459.55767833,0.00012119,2]
[333794518,1722513040304,-166.666666,0.00012626,2]
[333794520,1722513040313,-157.937296,0.00012986,2]
[333794522,1722513040323,-166.666666,0.00013284,2]
[333794524,1722513040332,-367.7699373,0.00013297,2]
[333794525,1722513040342,-4520.48905985,0.00013395,2]
[333794531,1722513040399,-789.7277838,0.00013395,2]
[333794533,1722513040408,-206.9081725,0.000134,2]
[333794534,1722513040418,-203.4708581,0.000134,2]
[333794593,1722513043310,-3.4373144,0.000134,2]
[333794594,1722513043320,-1602.70525149,0.00013569,2]
[333794595,1722513043329,-300.0,0.00013574,2]
[333794596,1722513043339,-1298.47180429,0.00013575,2]
[333794597,1722513043348,-1298.47180427,0.00013581,2]
[333794598,1722513043358,-2000.0,0.00013586,2]
[333794599,1722513043368,-1298.47180427,0.00013587,2]
[333794600,1722513043378,-1298.47180427,0.00013592,2]
[333794601,1722513043388,-1298.47180427,0.00013598,2]
[333794602,1722513043398,-11914.62289422,0.00013598,2]
[333794603,1722513043408,-294.1746601,0.000136,2]
[333794604,1722513043419,-306.0,0.000136,2]
[333794605,1722513043429,-206.9081725,0.000136,2]
[333794606,1722513043439,-206.9081725,0.000136,2]
[333794607,1722513043449,-206.9081725,0.000136,2]
[333794608,1722513043459,-438.8782004,0.000136,2]
[333794610,1722513043469,-207.7091362,0.000136,2]
[333794612,1722513043479,-153.0,0.00013616,2]
[333794614,1722513043488,-40414.3426057,0.0001366,2]
[333794616,1722513043498,-1983.68,0.00013669,2]
[333794618,1722513043507,-1983.68,0.00013669,2]
[333794620,1722513043517,-7335.64642877,0.0001367,5]
[333794622,1722513043526,-86462.9318306,0.0001367,2]
[333794624,1722513043536,-1983.68,0.00013675,2]
[333794626,1722513043545,-1983.68,0.00013675,2]
[333794628,1722513043554,-1983.68,0.00013675,2]
[333794630,1722513043564,-40414.3426057,0.00013676,2]
[333794632,1722513043573,-1983.68,0.00013685,2]
[333794633,1722513043582,-921.1535822,0.00013685,2]
[333794636,1722513043600,-1062.5264178,0.00013685,2]
[333794638,1722513043609,-29.13874877,0.00013685,2]
[333794640,1722513043622,-306.24798982,0.00013685,2]
[333794641,1722513043644,-17.81390743,0.00013685,2]
[333794679,1722513046415,-1085.04375266,0.00013685,2]
[333794789,1722513125723,6818.1,0.00027,120]
[333794790,1722513518874,3000.0,0.00027,120]
[333794792,1722513652242,156.92418716,9.999e-05,2]
[333794793,1722513677562,179.17728489,0.00027,120]
[333794794,1722513698206,506.36364634,9.999e-05,2]
[333794795,1722513801608,506.36364634,9.999e-05,2]
[333794796,1722513903111,506.36364634,9.999e-05,2]
[333794797,1722513924609,506.36364634,9.999e-05,2]
[333794798,1722514023095,188.23431458,9.999e-05,2]
[333794799,1722514030581,160.08287463,9.999e-05,2]
[333794800,1722514033637,555.66677916,9.999e-05,2]
[333794801,1722514043482,248.10858539,9.999e-05,2]
[333794802,1722514051617,599.65130289,9.999e-05,2]
[333794803,1722514052254,248.95807837,9.999e-05,2]
[333794804,1722514060679,506.36364634,9.999e-05,2]
[333794805,1722514064678,850.00911267,9.999e-05,2]
[333794806,1722514071922,155.08928424,9.999e-05,2]
[333794807,1722514078647,506.36364634,9.999e-05,2]
[333794809,1722514200128,506.36364634,9.999e-05,2]
[333795246,1722514243466,-1847.1816872,0.00012019,2]
[333795247,1722514243476,-250.59861391,0.0001212,2]
[333795248,1722514243488,-250.59861391,0.0001212,2]
[333795249,1722514243499,-166.666666,0.00012134,2]
[333795250,1722514243509,-225.9410856,0.00012465,2]
[333795251,1722514243518,-162.406025,0.00012986,2]
[333795252,1722514243528,-1000.0,0.00013,13]
[333795253,1722514243538,-153.0,0.00013078,2]
[333795254,1722514243548,-294.1746601,0.00013078,2]
[333795255,1722514243667,-153.0,0.00013078,2]
[333795256,1722514243677,-153.0,0.00013078,2]
[333795257,1722514243687,-153.0,0.000132,2]
[333795258,1722514243699,-300.0,0.00013201,2]
[333795259,1722514243709,-5310.21684366,0.00013202,2]
[333795260,1722514243719,-367.7699373,0.00013253,2]
[333795261,1722514243728,-153.0,0.000133,2]
[333795262,1722514243738,-888.37929671,0.00013585,2]
[333795263,1722514243753,-513.98779837,0.00013585,2]
[333795264,1722514243762,-39408.76621581,0.00013683,2]
[333795323,1722514247018,-319.11,0.00013683,2]
[333795336,1722514255382,230.84048523,9.9e-05,2]
[333795337,1722514301137,506.36364634,9.999e-05,2]
[333795338,1722514381156,11231.16404497,9.999e-05,2]
[333795339,1722514408146,446.81076494,9.999e-05,2]
[333795340,1722514434998,3601.36284679,9.999e-05,2]
[333795341,1722514544787,156.92418716,9.999e-05,2]
[333795342,1722514545999,3601.36284679,9.999e-05,2]
[333795343,1722514633041,3601.36284679,9.999e-05,2]
[333795344,1722514649816,209.69946518,9.999e-05,2]
[333795345,1722514663007,3601.36284679,9.999e-05,2]
[333795347,1722514774024,3601.36284679,9.999e-05,2]
[333795348,1722514803360,150.0,0.00027,120]
[333795349,1722514840236,150.0,0.00025,60]
[333795350,1722514876032,3601.36284679,9.999e-05,2]
[333795351,1722514971037,3601.36284679,9.999e-05,2]
[333795352,1722515050042,3601.36284679,9.999e-05,2]
[333795353,1722515115406,3000.0,0.00025,60]
[333795357,1722515138254,313.14418893,9.999e-05,2]
[333795363,1722515195118,-166.666666,0.00011874,2]
[333795364,1722515195139,-156.24216229,0.00012019,2]